fUST/lending_fUST_20250212
["ID","MTS","AMOUNT","RATE_DAILY","PERIOD"]
[352812695,1739340643932,-500.0,0.00013648,2]
[352812697,1739340643943,-500.0,0.00013648,2]
[352812699,1739340643954,-501.8015462,0.00013648,2]
[352812701,1739340643964,-505.12821359,0.00013648,2]
[352812703,1739340643974,-500.0,0.00013648,2]
[352812704,1739340643984,-500.0,0.00013648,2]
[352812705,1739340643994,-500.0,0.00013648,2]
[352812706,1739340644004,-500.0,0.00013648,2]
[352812707,1739340644014,-501.89238646,0.00013648,2]
[352812710,1739340644024,-500.0,0.00013648,2]
[352812712,1739340644034,-500.0,0.00013648,2]
[352812714,1739340644043,-500.0,0.00013648,2]
[352812715,1739340644053,-182.57495212,0.00013685,2]
[352812716,1739340644063,-38046.20232325,0.00013685,2]
[352812717,1739340644072,-414.59453275,0.00013698,14]
[352812718,1739340644082,-1000.0,0.00013698,2]
[352812719,1739340644092,-1000.0,0.00013698,2]
[352812720,1739340644101,-500.0,0.00013698,2]
[352812721,1739340644111,-500.0,0.00013698,2]
[352812722,1739340644121,-775.367403,0.00013699,2]
[352812723,1739340644130,-291.552717,0.00013699,2]
[352812724,1739340644139,-500.0,0.00013699,2]
[352812725,1739340644149,-500.0,0.00013699,2]
[352812726,1739340644158,-500.0,0.00013699,2]
[352812727,1739340644168,-335.60702229,0.00013699,2]
[352812728,1739340644179,-500.0,0.00013699,2]
[352812729,1739340644188,-500.0,0.00013699,2]
[352812730,1739340644199,-500.0,0.00013699,2]
[352812731,1739340644209,-500.0,0.00013699,2]
[352812732,1739340644219,-500.0,0.00013699,2]
[352812733,1739340644229,-345.70088414,0.00013699,2]
[352812734,1739340644239,-500.0,0.00013699,2]
[352812735,1739340644248,-500.0,0.00013699,2]
[352812736,1739340644258,-500.0,0.00013699,2]
[352812737,1739340644268,-500.0,0.00013699,2]
[352812738,1739340644278,-500.0,0.00013699,2]
[352812739,1739340644288,-500.0,0.00013699,2]
[352812740,1739340644298,-500.0,0.00013699,2]
[352812741,1739340644309,-500.0,0.00013699,2]
[352812742,1739340644320,-500.0,0.00013699,2]
[352812743,1739340644330,-500.0,0.00013699,2]
[352812744,1739340644341,-500.0,0.00013699,2]
[352812745,1739340644351,-500.0,0.00013699,2]
[352812746,1739340644360,-500.0,0.00013699,2]
[352812747,1739340644370,-500.0,0.00013699,2]
[352812748,1739340644381,-500.0,0.00013699,2]
[352812749,1739340644390,-500.0,0.00013699,2]
[352812750,1739340644400,-500.0,0.00013699,2]
[352812751,1739340644410,-500.0,0.00013699,2]
[352812752,1739340644516,-500.0,0.00013699,2]
[352812753,1739340644528,-500.0,0.00013699,2]
[352812754,1739340644539,-500.0,0.00013699,2]
[352812755,1739340644549,-500.0,0.00013699,2]
[352812756,1739340644559,-500.0,0.00013699,2]
[352812757,1739340644569,-500.0,0.00013699,2]
[352812758,1739340644579,-611.30795731,0.00013699,2]
[352812759,1739340644588,-750.66,0.00013782,2]
[352812760,1739340644598,-500.0,0.00013782,2]
[352812761,1739340644608,-500.0,0.00013782,2]
[352812762,1739340644618,-864.57,0.00013782,2]
[352812763,1739340644628,-500.0,0.00013783,2]
[352812764,1739340644637,-260.72323367,0.00013783,2]
[352812765,1739340644647,-505.87092413,0.00013783,2]
[352812766,1739340644657,-1075.54,0.00013783,2]
[352812767,1739340644666,-1648.9,0.00013783,2]
[352812768,1739340644676,-500.0,0.00013783,2]
[352812769,1739340644686,-500.0,0.00013783,2]
[352812770,1739340644695,-1004.2,0.00013783,2]
[352812771,1739340644705,-500.0,0.00013783,2]
[352812772,1739340644714,-500.0,0.00013783,2]
[352812773,1739340644724,-644.89,0.00013783,2]
[352812774,1739340644733,-500.0,0.00013783,2]
[352812775,1739340644743,-684.68,0.00013783,2]
[352812776,1739340644752,-500.0,0.00013783,2]
[352812777,1739340644762,-500.0,0.00013783,2]
[352812778,1739340644775,-500.0,0.00013783,2]
[352812779,1739340644785,-500.0,0.00013783,2]
[352812780,1739340644794,-500.0,0.00013783,2]
[352812781,1739340644803,-500.0,0.00013783,2]
[352812782,1739340644813,-500.0,0.00013783,2]
[352812783,1739340644823,-427.49702275,0.00013783,2]
[352812784,1739340644832,-500.0,0.00013783,2]
[352812785,1739340644841,-500.0,0.00013784,2]
[352812786,1739340644853,-500.0,0.00013784,2]
[352812787,1739340644862,-500.0,0.00013784,2]
[352812788,1739340644872,-500.0,0.00013784,2]
[352812789,1739340644882,-500.0,0.00013784,2]
[352812790,1739340644891,-500.0,0.00013784,2]
[352812791,1739340644901,-500.0,0.00013784,2]
[352812792,1739340644910,-501.65998518,0.00013784,2]
[352812793,1739340644919,-558.16,0.00013784,2]
[352812794,1739340644929,-623.29212763,0.00013784,2]
[352812795,1739340644938,-618.61533597,0.00013784,2]
[352812796,1739340644948,-506.38127849,0.00013784,2]
[352812797,1739340644957,-505.34928355,0.00013784,2]
[352812798,1739340644966,-500.0,0.00013784,2]
[352812799,1739340644976,-504.607933,0.00013784,2]
[352812800,1739340644985,-500.0,0.00013784,2]
[352812801,1739340644995,-500.0,0.00013784,2]
[352812802,1739340645004,-522.7426382,0.00013784,2]
[352812803,1739340645014,-465.4695409,0.00013784,2]
[352812804,1739340645024,-167.92973331,0.00013784,2]
[352812805,1739340645033,-500.0,0.00013784,2]
[352812806,1739340645042,-500.0,0.00013784,2]
[352812807,1739340645051,-500.0,0.00013784,2]
[352812808,1739340645061,-501.55974027,0.00013784,2]
[352812809,1739340645070,-500.0,0.00013784,2]
[352812810,1739340645079,-500.0,0.00013784,2]
[352812811,1739340645089,-500.0,0.00013784,2]
[352812812,1739340645098,-500.0,0.00013784,2]
[352812813,1739340645109,-502.17235221,0.00013784,2]
[352812814,1739340645118,-500.0,0.00013784,2]
[352812815,1739340645128,-500.0,0.00013784,2]
[352812816,1739340645138,-338.4561293,0.00013784,2]
[352812817,1739340645148,-500.0,0.00013784,2]
[352812818,1739340645158,-500.0,0.00013784,2]
[352812819,1739340645167,-500.0,0.00013784,2]
[352812820,1739340645177,-495.96016509,0.00013784,2]
[352812821,1739340645198,-1031.59,0.00013784,2]
[352812822,1739340645210,-4378.71,0.00013784,2]
[352812823,1739340645220,-549.39,0.00013784,2]
[352812824,1739340645230,-500.0,0.00013784,2]
[352812825,1739340645241,-500.0,0.00013784,2]
[352812826,1739340645251,-500.0,0.00013784,2]
[352812827,1739340645262,-500.0,0.00013784,2]
[352812828,1739340645274,-500.0,0.00013784,2]
[352812829,1739340645284,-500.0,0.00013784,2]
[352812830,1739340645293,-500.0,0.00013784,2]
[352812831,1739340645303,-9767.7,0.00013784,2]
[352812832,1739340645314,-502.67727954,0.00013784,2]
[352812833,1739340645324,-500.0,0.00013784,2]
[352812834,1739340645334,-500.0,0.00013784,2]
[352812835,1739340645344,-500.0,0.00013784,2]
[352812836,1739340645354,-500.0,0.00013784,2]
[352812837,1739340645364,-500.0,0.00013784,2]
[352812838,1739340645374,-500.0,0.00013784,2]
[352812839,1739340645384,-500.0,0.00013784,2]
[352812840,1739340645394,-293.5474661,0.00013784,2]
[352812841,1739340645405,-625.36247002,0.00013784,2]
[352812842,1739340645415,-500.0,0.00013784,2]
[352812843,1739340645425,-501.22159536,0.00013784,2]
[352812844,1739340645435,-500.0,0.00013784,2]
[352812845,1739340645444,-3649.74,0.00013784,2]
[352812846,1739340645454,-500.0,0.00013784,2]
[352812847,1739340645464,-500.0,0.00013784,2]
[352812848,1739340645474,-500.0,0.00013784,2]
[352812849,1739340645483,-500.0,0.00013785,2]
[352812850,1739340645493,-505.67076895,0.00013785,2]
[352812851,1739340645506,-500.0,0.00013785,2]
[352812852,1739340645516,-259.40022541,0.00013785,2]
[352812853,1739340645526,-500.0,0.00013785,2]
[352812854,1739340645536,-1000.0,0.00013785,2]
[352812855,1739340645546,-504.37975815,0.00013785,2]
[352812856,1739340645557,-500.0,0.00013785,2]
[352812857,1739340645567,-500.0,0.00013785,2]
[352812858,1739340645576,-500.0,0.00013785,2]
[352812859,1739340645586,-500.0,0.00013785,2]
[352812860,1739340645596,-361.23025921,0.00013785,2]
[352812861,1739340645606,-500.0,0.00013785,2]
[352812862,1739340645615,-500.0,0.00013785,2]
[352812863,1739340645625,-500.0,0.00013785,2]
[352812864,1739340645635,-500.0,0.00013785,2]
[352812865,1739340645646,-500.0,0.00013785,2]
[352812866,1739340645656,-514.228614,0.00013833,2]
[352812867,1739340645667,-500.0,0.00013833,2]
[352812868,1739340645678,-378.53207376,0.00013833,2]
[352812869,1739340645688,-500.0,0.00013846,2]
[352812870,1739340645698,-750.66,0.00013919,2]
[352812871,1739340645708,-500.0,0.00013919,2]
[352812872,1739340645718,-864.57,0.00013919,2]
[352812873,1739340645727,-1075.54,0.0001392,2]
[352812874,1739340645738,-1648.9,0.0001392,2]
[352812875,1739340645748,-500.0,0.0001392,2]
[352812876,1739340645758,-500.0,0.0001392,2]
[352812877,1739340645769,-1004.2,0.0001392,2]
[352812878,1739340645783,-500.0,0.0001392,2]
[352812879,1739340645793,-500.0,0.0001392,2]
[352812880,1739340645803,-644.89,0.0001392,2]
[352812881,1739340645814,-500.0,0.0001392,2]
[352812882,1739340645825,-684.68,0.0001392,2]
[352812883,1739340645837,-500.0,0.0001392,2]
[352812884,1739340645847,-500.0,0.0001392,2]
[352812885,1739340645856,-500.0,0.0001392,2]
[352812886,1739340645866,-500.0,0.0001392,2]
[352812887,1739340645877,-500.0,0.0001392,2]
[352812888,1739340645888,-500.0,0.0001392,2]
[352812889,1739340645897,-500.0,0.0001392,2]
[352812890,1739340645908,-500.0,0.0001392,2]
[352812891,1739340645919,-500.0,0.00013921,2]
[352812892,1739340645930,-500.0,0.00013921,2]
[352812893,1739340645941,-450.47626253,0.00013921,2]
[352812894,1739340645952,-392.27044691,0.00013921,2]
[352812895,1739340645963,-500.0,0.00013921,2]
[352812896,1739340645975,-500.0,0.00013921,2]
[352812897,1739340645986,-500.0,0.00013921,2]
[352812898,1739340645998,-508.12984906,0.00013921,2]
[352812899,1739340646008,-500.0,0.00013921,2]
[352812900,1739340646018,-500.0,0.00013921,2]
[352812901,1739340646034,-500.0,0.00013921,2]
[352812902,1739340646044,-398.23614346,0.00013921,2]
[352812903,1739340646054,-500.0,0.00013921,2]
[352812904,1739340646064,-503.52852237,0.00013921,2]
[352812905,1739340646074,-500.0,0.00013921,2]
[352812906,1739340646084,-347.53580468,0.00013921,2]
[352812907,1739340646094,-500.0,0.00013921,2]
[352812908,1739340646104,-1031.59,0.00013921,2]
[352812909,1739340646117,-4378.71,0.00013921,2]
[352812910,1739340646127,-549.39,0.00013921,2]
[352812911,1739340646137,-500.0,0.00013921,2]
[352812912,1739340646147,-500.0,0.00013921,2]
[352812913,1739340646157,-500.0,0.00013921,2]
[352812914,1739340646167,-500.0,0.00013921,2]
[352812915,1739340646179,-500.0,0.00013921,2]
[352812916,1739340646188,-555.84272419,0.00013921,2]
[352812917,1739340646198,-9767.7,0.00013921,2]
[352812918,1739340646208,-500.0,0.00013921,2]
[352812919,1739340646218,-500.0,0.00013921,2]
[352812920,1739340646227,-500.0,0.00013921,2]
[352812921,1739340646237,-607.150844,0.00013921,2]
[352812922,1739340646247,-500.0,0.00013921,2]
[352812923,1739340646257,-500.0,0.00013921,2]
[352812924,1739340646267,-502.53382021,0.00013921,2]
[352812925,1739340646278,-500.0,0.00013921,2]
[352812926,1739340646287,-3649.74,0.00013921,2]
[352812927,1739340646297,-500.0,0.00013921,2]
[352812928,1739340646307,-500.0,0.00013921,2]
[352812929,1739340646317,-500.0,0.00013921,2]
[352812930,1739340646327,-500.0,0.00013922,2]
[352812931,1739340646337,-1000.0,0.00013922,2]
[352812932,1739340646347,-500.0,0.00013922,2]
[352812933,1739340646357,-500.0,0.00013922,2]
[352812935,1739340646367,-500.0,0.00013922,2]
[352812937,1739340646377,-500.0,0.00013922,2]
[352812940,1739340646494,-500.0,0.00013922,2]
[352812941,1739340646513,-500.0,0.00013922,2]
[352812942,1739340646522,-448.141,0.00013928,2]
[352812943,1739340646532,-182.57495212,0.00013959,2]
[352812944,1739340646542,-500.0,0.00013999,7]
[352812946,1739340646552,-500.0,0.00013999,7]
[352812947,1739340646562,-500.0,0.00013999,7]
[352812949,1739340646572,-500.0,0.00013999,7]
[352812951,1739340646582,-500.0,0.00013999,7]
[352812953,1739340646591,-500.0,0.00013999,7]
[352812955,1739340646601,-500.0,0.00013999,7]
[352812956,1739340646610,-500.0,0.00013999,7]
[352812957,1739340646620,-500.0,0.00013999,7]
[352812959,1739340646630,-500.0,0.00013999,7]
[352812961,1739340646639,-500.0,0.00013999,7]
[352812963,1739340646649,-500.0,0.00013999,7]
[352812964,1739340646659,-500.0,0.00013999,7]
[352812966,1739340646669,-500.0,0.00013999,7]
[352812967,1739340646680,-500.0,0.00013999,7]
[352812968,1739340646690,-500.0,0.00013999,7]
[352812969,1739340646699,-500.0,0.00013999,7]
[352812970,1739340646709,-500.0,0.00013999,7]
[352812971,1739340646718,-500.0,0.00013999,7]
[352812972,1739340646728,-500.0,0.00013999,7]
[352812973,1739340646738,-500.0,0.00013999,7]
[352812974,1739340646748,-500.0,0.00013999,7]
[352812975,1739340646758,-500.0,0.00013999,7]
[352812976,1739340646768,-500.0,0.00013999,7]
[352812977,1739340646783,-500.0,0.00013999,7]
[352812978,1739340646793,-500.0,0.00013999,7]
[352812979,1739340646802,-500.0,0.00013999,7]
[352812980,1739340646812,-500.0,0.00013999,7]
[352812981,1739340646823,-500.0,0.00013999,7]
[352812982,1739340646832,-500.0,0.00013999,7]
[352812983,1739340646842,-500.0,0.00013999,7]
[352812984,1739340646852,-500.0,0.00013999,7]
[352812985,1739340646864,-500.0,0.00013999,7]
[352812986,1739340646874,-500.0,0.00013999,7]
[352812987,1739340646884,-500.0,0.00013999,7]
[352812988,1739340646896,-500.0,0.00013999,7]
[352812989,1739340646910,-500.0,0.00013999,7]
[352812990,1739340646920,-500.0,0.00013999,7]
[352812991,1739340646930,-500.0,0.00013999,7]
[352812992,1739340646940,-500.0,0.00013999,7]
[352812993,1739340646950,-500.0,0.00013999,7]
[352812994,1739340646959,-500.0,0.00013999,7]
[352812995,1739340646969,-500.0,0.00013999,7]
[352812996,1739340646979,-500.0,0.00013999,7]
[352812997,1739340646989,-500.0,0.00013999,7]
[352812998,1739340646999,-500.0,0.00013999,7]
[352812999,1739340647009,-500.0,0.00013999,7]
[352813000,1739340647020,-500.0,0.00013999,7]
[352813001,1739340647031,-500.0,0.00013999,7]
[352813002,1739340647040,-500.0,0.00013999,7]
[352813003,1739340647050,-500.0,0.00013999,7]
[352813004,1739340647060,-500.0,0.00013999,7]
[352813005,1739340647070,-500.0,0.00013999,7]
[352813006,1739340647079,-603.13,0.00013999,7]
[352813007,1739340647088,-500.0,0.00013999,7]
[352813008,1739340647098,-500.0,0.00013999,7]
[352813009,1739340647109,-750.66,0.00014056,2]
[352813010,1739340647120,-500.0,0.00014056,2]
[352813011,1739340647130,-864.57,0.00014056,2]
[352813012,1739340647140,-1075.54,0.00014057,2]
[352813013,1739340647149,-1648.9,0.00014057,2]
[352813014,1739340647160,-500.0,0.00014057,2]
[352813015,1739340647170,-500.0,0.00014057,2]
[352813016,1739340647180,-1004.2,0.00014057,2]
[352813017,1739340647190,-500.0,0.00014057,2]
[352813018,1739340647200,-500.0,0.00014057,2]
[352813019,1739340647210,-644.89,0.00014057,2]
[352813020,1739340647220,-500.0,0.00014057,2]
[352813021,1739340647230,-684.68,0.00014057,2]
[352813022,1739340647240,-500.0,0.00014057,2]
[352813023,1739340647250,-500.0,0.00014057,2]
[352813024,1739340647260,-500.0,0.00014057,2]
[352813025,1739340647270,-500.0,0.00014057,2]
[352813026,1739340647281,-500.0,0.00014057,2]
[352813027,1739340647290,-500.0,0.00014057,2]
[352813028,1739340647300,-500.0,0.00014057,2]
[352813029,1739340647310,-151.0,0.00014057,2]
[352813030,1739340647319,-500.0,0.00014057,2]
[352813031,1739340647329,-151.0,0.00014057,2]
[352813032,1739340647339,-500.0,0.00014058,2]
[352813033,1739340647348,-500.0,0.00014058,2]
[352813034,1739340647358,-500.0,0.00014058,2]
[352813035,1739340647376,-500.0,0.00014058,2]
[352813036,1739340647393,-500.0,0.00014058,2]
[352813037,1739340647410,-454.33356337,0.00014058,2]
[352813038,1739340647424,-504.3205174,0.00014058,2]
[352813039,1739340647438,-500.0,0.00014058,2]
[352813040,1739340647454,-500.0,0.00014058,2]
[352813041,1739340647471,-500.0,0.00014058,2]
[352813042,1739340647486,-1031.59,0.00014058,2]
[352813043,1739340647502,-4378.71,0.00014058,2]
[352813044,1739340647518,-549.39,0.00014058,2]
[352813045,1739340647536,-500.0,0.00014058,2]
[352813046,1739340647551,-500.0,0.00014058,2]
[352813047,1739340647565,-500.0,0.00014058,2]
[352813048,1739340647580,-500.0,0.00014058,2]
[352813049,1739340647595,-500.0,0.00014058,2]
[352813050,1739340647611,-9767.7,0.00014058,2]
[352813051,1739340647627,-212.07100562,0.00014058,2]
[352813052,1739340647641,-506.52232214,0.00014058,2]
[352813053,1739340647653,-500.0,0.00014058,2]
[352813054,1739340647667,-500.0,0.00014058,2]
[352813055,1739340647681,-500.0,0.00014058,2]
[352813056,1739340647697,-151.0,0.00014058,2]
[352813057,1739340647713,-151.142476,0.00014058,2]
[352813058,1739340647728,-500.0,0.00014058,2]
[352813059,1739340647744,-151.862795,0.00014058,2]
[352813060,1739340647762,-3649.74,0.00014058,2]
[352813061,1739340647783,-502.63645887,0.00014058,2]
[352813062,1739340647795,-500.0,0.00014058,2]
[352813063,1739340647807,-500.0,0.00014058,2]
[352813064,1739340647819,-371.78900568,0.00014059,2]
[352813065,1739340647835,-196.51823698,0.00014059,2]
[352813066,1739340647853,-500.0,0.00014059,2]
[352813067,1739340647870,-500.0,0.00014059,2]
[352813068,1739340647881,-500.0,0.00014059,2]
[352813069,1739340647893,-500.0,0.00014059,2]
[352813070,1739340647907,-216.067364,0.00014059,2]
[352813071,1739340647921,-151.0,0.00014059,2]
[352813072,1739340647933,-152.03741708,0.00014179,2]
[352813073,1739340647944,-750.66,0.00014193,2]
[352813074,1739340647959,-500.0,0.00014193,2]
[352813075,1739340647974,-864.57,0.00014193,2]
[352813076,1739340647990,-1075.54,0.00014194,2]
[352813077,1739340648005,-1648.9,0.00014194,2]
[352813078,1739340648026,-500.0,0.00014194,2]
[352813079,1739340648043,-500.0,0.00014194,2]
[352813080,1739340648060,-1004.2,0.00014194,2]
[352813081,1739340648074,-500.0,0.00014194,2]
[352813082,1739340648088,-500.0,0.00014194,2]
[352813083,1739340648101,-644.89,0.00014194,2]
[352813084,1739340648115,-225.90919238,0.00014194,2]
[352813085,1739340648129,-684.68,0.00014194,2]
[352813086,1739340648144,-500.0,0.00014194,2]
[352813087,1739340648158,-500.0,0.00014194,2]
[352813088,1739340648174,-500.0,0.00014194,2]
[352813089,1739340648188,-500.0,0.00014194,2]
[352813090,1739340648201,-500.0,0.00014194,2]
[352813091,1739340648214,-500.0,0.00014194,2]
[352813092,1739340648227,-500.0,0.00014194,2]
[352813093,1739340648242,-500.0,0.00014194,2]
[352813094,1739340648257,-500.0,0.00014195,2]
[352813095,1739340648272,-500.0,0.00014195,2]
[352813096,1739340648287,-500.0,0.00014195,2]
[352813097,1739340648303,-500.0,0.00014195,2]
[352813098,1739340648316,-162.48117573,0.00014195,2]
[352813099,1739340648331,-500.0,0.00014195,2]
[352813100,1739340648344,-500.0,0.00014195,2]
[352813101,1739340648359,-1031.59,0.00014195,2]
[352813102,1739340648372,-4378.71,0.00014195,2]
[352813103,1739340648386,-500.0,0.00014195,2]
[352813104,1739340648401,-500.0,0.00014195,2]
[352813105,1739340648414,-500.0,0.00014195,2]
[352813106,1739340648429,-500.0,0.00014195,2]
[352813107,1739340648444,-500.0,0.00014195,2]
[352813108,1739340648458,-9767.7,0.00014195,2]
[352813109,1739340648472,-500.0,0.00014195,2]
[352813110,1739340648487,-500.0,0.00014195,2]
[352813111,1739340648501,-500.0,0.00014195,2]
[352813112,1739340648515,-500.0,0.00014195,2]
[352813113,1739340648530,-3649.74,0.00014195,2]
[352813114,1739340648543,-500.0,0.00014195,2]
[352813115,1739340648557,-638.67465305,0.00014195,2]
[352813116,1739340648571,-500.0,0.00014196,2]
[352813117,1739340648586,-397.32602959,0.00014196,2]
[352813118,1739340648599,-500.0,0.00014196,2]
[352813119,1739340648759,-500.0,0.00014202,2]
[352813120,1739340648779,-500.0,0.00014202,2]
[352813121,1739340648790,-182.57495212,0.00014232,2]
[352813122,1739340648800,-501.64315851,0.00014273,2]
[352813123,1739340648812,-500.0,0.00014273,2]
[352813124,1739340648822,-750.66,0.0001433,2]
[352813125,1739340648833,-500.0,0.0001433,2]
[352813126,1739340648850,-864.57,0.0001433,2]
[352813127,1739340648864,-158.093449,0.00014331,2]
[352813128,1739340648874,-1075.54,0.00014331,2]
[352813129,1739340648884,-1648.9,0.00014331,2]
[352813130,1739340648895,-500.0,0.00014331,2]
[352813131,1739340648905,-500.0,0.00014331,2]
[352813132,1739340648915,-151.0,0.00014331,2]
[352813133,1739340648931,-1004.2,0.00014331,2]
[352813134,1739340648942,-500.0,0.00014331,2]
[352813135,1739340648953,-500.0,0.00014331,2]
[352813136,1739340648963,-151.0,0.00014331,2]
[352813137,1739340648973,-644.89,0.00014331,2]
[352813138,1739340648983,-151.0,0.00014331,2]
[352813139,1739340648993,-684.68,0.00014331,2]
[352813140,1739340649003,-151.0,0.00014331,2]
[352813141,1739340649014,-152.024997,0.00014331,2]
[352813142,1739340649025,-500.0,0.00014331,2]
[352813143,1739340649036,-500.0,0.00014331,2]
[352813144,1739340649047,-151.0,0.00014331,2]
[352813145,1739340649059,-500.0,0.00014331,2]
[352813146,1739340649069,-500.0,0.00014331,2]
[352813147,1739340649079,-500.0,0.00014331,2]
[352813148,1739340649090,-500.0,0.00014331,2]
[352813149,1739340649101,-500.0,0.00014331,2]
[352813150,1739340649111,-500.0,0.00014331,2]
[352813151,1739340649122,-500.0,0.00014332,2]
[352813152,1739340649133,-500.0,0.00014332,2]
[352813153,1739340649143,-500.0,0.00014332,2]
[352813154,1739340649154,-500.0,0.00014332,2]
[352813155,1739340649164,-151.0,0.00014332,2]
[352813156,1739340649175,-151.0,0.00014332,2]
[352813157,1739340649186,-500.0,0.00014332,2]
[352813158,1739340649197,-500.0,0.00014332,2]
[352813159,1739340649207,-1031.59,0.00014332,2]
[352813160,1739340649217,-4378.71,0.00014332,2]
[352813161,1739340649227,-500.0,0.00014332,2]
[352813162,1739340649237,-500.0,0.00014332,2]
[352813163,1739340649247,-500.0,0.00014332,2]
[352813164,1739340649257,-500.0,0.00014332,2]
[352813165,1739340649267,-9767.7,0.00014332,2]
[352813166,1739340649278,-500.0,0.00014332,2]
[352813167,1739340649287,-500.0,0.00014332,2]
[352813168,1739340649297,-387.91857799,0.00014332,2]
[352813169,1739340649307,-500.0,0.00014332,2]
[352813170,1739340649317,-3649.74,0.00014332,2]
[352813171,1739340649327,-500.0,0.00014332,2]
[352813172,1739340649336,-500.0,0.00014333,2]
[352813173,1739340649346,-500.0,0.00014333,2]
[352813174,1739340649356,-500.0,0.00014447,2]
[352813175,1739340649366,-151.0,0.00014447,2]
[352813176,1739340649376,-151.0,0.00014447,2]
[352813177,1739340649386,-750.66,0.00014467,2]
[352813178,1739340649396,-500.0,0.00014467,2]
[352813179,1739340649406,-864.57,0.00014467,2]
[352813180,1739340649416,-1075.54,0.00014468,2]
[352813181,1739340649425,-1648.9,0.00014468,2]
[352813182,1739340649435,-500.0,0.00014468,2]
[352813183,1739340649444,-500.0,0.00014468,2]
[352813184,1739340649454,-1004.2,0.00014468,2]
[352813185,1739340649465,-500.0,0.00014468,2]
[352813186,1739340649475,-500.0,0.00014468,2]
[352813187,1739340649485,-644.89,0.00014468,2]
[352813188,1739340649495,-684.68,0.00014468,2]
[352813189,1739340649505,-500.0,0.00014468,2]
[352813190,1739340649515,-500.0,0.00014468,2]
[352813191,1739340649526,-500.0,0.00014468,2]
[352813192,1739340649536,-500.0,0.00014468,2]
[352813193,1739340649545,-500.0,0.00014468,2]
[352813194,1739340649555,-500.0,0.00014468,2]
[352813195,1739340649566,-500.0,0.00014468,2]
[352813196,1739340649576,-500.0,0.00014468,2]
[352813197,1739340649588,-500.0,0.00014469,2]
[352813198,1739340649598,-490.61,0.00014469,2]
[352813199,1739340649607,-503.27807468,0.00014469,2]
[352813200,1739340649617,-500.0,0.00014469,2]
[352813201,1739340649626,-151.0,0.00014469,2]
[352813202,1739340649636,-500.0,0.00014469,2]
[352813203,1739340649645,-500.0,0.00014469,2]
[352813204,1739340649655,-151.0,0.00014469,2]
[352813205,1739340649664,-1031.59,0.00014469,2]
[352813206,1739340649674,-4378.71,0.00014469,2]
[352813207,1739340649683,-500.0,0.00014469,2]
[352813208,1739340649693,-209.89260366,0.00014469,2]
[352813209,1739340649703,-500.0,0.00014469,2]
[352813210,1739340649713,-500.0,0.00014469,2]
[352813211,1739340649723,-9767.7,0.00014469,2]
[352813212,1739340649732,-500.0,0.00014469,2]
[352813213,1739340649742,-554.7766461,0.00014469,2]
[352813214,1739340649751,-206.263594,0.00014469,2]
[352813215,1739340649761,-500.0,0.00014469,2]